fUST/lending_fUST_20240811
["ID","MTS","AMOUNT","RATE_DAILY","PERIOD"]
[334616584,1723349442895,-500.0,0.00020821,3]
[334616585,1723349442906,-198.32995339,0.00020821,3]
[334616586,1723349442916,-500.0,0.00020821,3]
[334616587,1723349442926,-500.0,0.00020821,3]
[334616588,1723349442937,-500.0,0.00020821,3]
[334616589,1723349442948,-500.0,0.00020821,3]
[334616590,1723349442958,-500.0,0.00020821,3]
[334616591,1723349442968,-500.0,0.00020821,3]
[334616592,1723349442977,-500.0,0.00020821,3]
[334616594,1723349442989,-508.93244788,0.00020821,3]
[334616595,1723349442999,-508.75715373,0.00020821,3]
[334616596,1723349443009,-500.0,0.00020821,3]
[334616597,1723349443019,-500.0,0.00020821,3]
[334616598,1723349443029,-500.0,0.00020821,3]
[334616599,1723349443039,-503.55471963,0.00020821,3]
[334616600,1723349443048,-500.0,0.00020821,3]
[334616601,1723349443058,-425.80085138,0.00020821,3]
[334616602,1723349443067,-539.18,0.00020821,3]
[334616603,1723349443078,-500.0,0.00020821,3]
[334616604,1723349443088,-500.0,0.00020821,3]
[334616605,1723349443099,-500.0,0.00020821,3]
[334616606,1723349443109,-500.0,0.00020821,3]
[334616607,1723349443123,-536.60571055,0.00020821,3]
[334616608,1723349443140,-479.19456269,0.00020821,3]
[334616609,1723349443149,-500.0,0.00020821,3]
[334616610,1723349443158,-500.0,0.00020821,3]
[334616611,1723349443170,-500.0,0.00020821,3]
[334616612,1723349443180,-500.0,0.00020821,3]
[334616613,1723349443189,-500.0,0.00020821,3]
[334616614,1723349443199,-500.0,0.00020821,3]
[334616615,1723349443208,-500.0,0.00020821,3]
[334616616,1723349443220,-500.0,0.00020821,3]
[334616617,1723349443230,-500.0,0.00020821,3]
[334616618,1723349443241,-155.70694834,0.00020821,3]
[334616619,1723349443251,-500.0,0.00020821,3]
[334616620,1723349443261,-500.0,0.00020821,3]
[334616621,1723349443270,-500.0,0.00020821,3]
[334616622,1723349443279,-529.1029252,0.00020821,3]
[334616623,1723349443289,-505.20053667,0.00020821,3]
[334616624,1723349443299,-500.0,0.00020821,3]
[334616625,1723349443310,-500.0,0.00020821,3]
[334616626,1723349443320,-759.38,0.00020821,3]
[334616627,1723349443328,-500.0,0.00020821,3]
[334616628,1723349443337,-983.97,0.00020821,3]
[334616629,1723349443347,-500.0,0.00020821,3]
[334616630,1723349443358,-500.0,0.00020821,3]
[334616631,1723349443368,-500.0,0.00020821,3]
[334616632,1723349443380,-1006.74,0.00020821,3]
[334616633,1723349443392,-2445.87,0.00020821,3]
[334616634,1723349443402,-500.0,0.00020821,3]
[334616635,1723349443413,-506.73965735,0.00020821,3]
[334616636,1723349443424,-639.0525684,0.00020821,3]
[334616637,1723349443434,-500.0,0.00020821,3]
[334616638,1723349443444,-500.0,0.00020821,3]
[334616639,1723349443453,-500.0,0.00020821,3]
[334616640,1723349443462,-500.0,0.00020821,3]
[334616641,1723349443471,-508.02683301,0.00020821,3]
[334616642,1723349443480,-1254.17,0.00020821,3]
[334616643,1723349443490,-504.41613013,0.00020821,3]
[334616644,1723349443499,-500.0,0.00020821,3]
[334616645,1723349443508,-500.0,0.00020821,3]
[334616646,1723349443517,-156.27962907,0.00020821,3]
[334616647,1723349443527,-500.0,0.00020821,3]
[334616648,1723349443538,-500.0,0.00020821,3]
[334616649,1723349443549,-500.0,0.00020821,3]
[334616650,1723349443561,-512.72763896,0.00020821,3]
[334616651,1723349443570,-500.0,0.00020821,3]
[334616652,1723349443579,-500.0,0.00020821,3]
[334616653,1723349443589,-500.0,0.00020821,3]
[334616654,1723349443599,-500.0,0.00020821,3]
[334616655,1723349443610,-500.0,0.00020821,3]
[334616656,1723349443619,-500.0,0.00020821,3]
[334616657,1723349443628,-151.0,0.00020821,2]
[334616658,1723349443639,-151.0,0.00020821,2]
[334616659,1723349443648,-500.0,0.00020821,3]
[334616660,1723349443657,-500.0,0.00020821,3]
[334616661,1723349443667,-509.78410977,0.00020821,3]
[334616662,1723349443677,-500.0,0.00020821,3]
[334616663,1723349443687,-605.4,0.00020821,3]
[334616664,1723349443696,-500.0,0.00020821,3]
[334616665,1723349443711,-500.0,0.00020821,3]
[334616666,1723349443720,-813.43,0.00020821,3]
[334616667,1723349443732,-514.10645778,0.00020821,3]
[334616668,1723349443742,-500.0,0.00020821,3]
[334616669,1723349443752,-500.0,0.00020821,3]
[334616670,1723349443762,-500.0,0.00020821,3]
[334616671,1723349443771,-604.21,0.00020821,3]
[334616672,1723349443781,-283.30390946,0.00020821,3]
[334616673,1723349443790,-500.0,0.00020821,3]
[334616674,1723349443800,-500.0,0.00020821,3]
[334616675,1723349443809,-500.0,0.00020821,3]
[334616676,1723349443819,-955.71,0.00020821,3]
[334616677,1723349443828,-500.0,0.00020821,3]
[334616678,1723349443837,-507.26053928,0.00020821,3]
[334616679,1723349443847,-500.0,0.00020821,3]
[334616680,1723349443855,-500.0,0.00020821,3]
[334616681,1723349443864,-500.0,0.00020821,3]
[334616682,1723349443873,-500.0,0.00020821,3]
[334616683,1723349443883,-500.0,0.00020821,3]
[334616684,1723349443895,-645.85087274,0.00020821,3]
[334616685,1723349443909,-500.0,0.00020821,3]
[334616686,1723349443918,-500.0,0.00020821,3]
[334616687,1723349443927,-512.27765922,0.00020821,3]
[334616688,1723349443936,-1021.02,0.00020821,3]
[334616689,1723349443945,-500.0,0.00020821,3]
[334616690,1723349443954,-1022.92,0.00020821,3]
[334616691,1723349443963,-606.4,0.00020821,3]
[334616692,1723349443972,-409.779529,0.00020821,2]
[334616693,1723349443981,-409.779529,0.00020821,2]
[334616694,1723349443990,-500.0,0.00020821,3]
[334616695,1723349443999,-409.779529,0.00020821,2]
[334616696,1723349444009,-409.779529,0.00020821,2]
[334616697,1723349444018,-500.0,0.00020821,3]
[334616698,1723349444028,-151.0,0.00020821,2]
[334616699,1723349444037,-151.877628,0.00020821,2]
[334616700,1723349444047,-500.0,0.00020821,3]
[334616701,1723349444056,-928.2,0.00020821,3]
[334616702,1723349444066,-516.43,0.00020821,3]
[334616703,1723349444075,-500.0,0.00020821,3]
[334616704,1723349444085,-500.0,0.00020821,3]
[334616705,1723349444094,-500.0,0.00020821,3]
[334616706,1723349444103,-500.0,0.00020821,3]
[334616707,1723349444113,-168.42785613,0.00020821,3]
[334616708,1723349444123,-500.0,0.00020821,3]
[334616709,1723349444134,-500.0,0.00020821,3]
[334616710,1723349444146,-511.72438029,0.00020821,3]
[334616711,1723349444155,-500.0,0.00020821,3]
[334616712,1723349444165,-899.65,0.00020821,3]
[334616713,1723349444176,-200.0,0.00020821,3]
[334616714,1723349444185,-500.0,0.00020821,3]
[334616715,1723349444194,-500.0,0.00020821,3]
[334616716,1723349444204,-619.39201085,0.00020821,3]
[334616717,1723349444215,-500.0,0.00020821,3]
[334616718,1723349444224,-500.0,0.00020821,3]
[334616719,1723349444233,-854.12,0.00020821,3]
[334616720,1723349444243,-500.0,0.00020821,3]
[334616721,1723349444252,-1922.66,0.00020821,3]
[334616722,1723349444261,-500.0,0.00020821,3]
[334616723,1723349444270,-501.74591873,0.00020821,3]
[334616724,1723349444414,-788.62,0.00020821,3]
[334616725,1723349444423,-188.78713991,0.00020821,3]
[334616726,1723349444433,-500.0,0.00020821,3]
[334616727,1723349444442,-500.0,0.00020821,3]
[334616728,1723349444452,-424.50952969,0.00020821,3]
[334616729,1723349444462,-500.0,0.00020821,3]
[334616730,1723349444472,-518.94812623,0.00020821,3]
[334616731,1723349444481,-500.0,0.00020821,3]
[334616732,1723349444491,-500.0,0.00020821,3]
[334616733,1723349444500,-952.98,0.00020821,3]
[334616734,1723349444509,-500.0,0.00020821,3]
[334616735,1723349444518,-500.0,0.00020821,3]
[334616736,1723349444527,-1168.07,0.00020821,3]
[334616737,1723349444537,-500.0,0.00020821,3]
[334616738,1723349444546,-500.0,0.00020821,3]
[334616739,1723349444557,-1703.39,0.00020821,3]
[334616740,1723349444568,-500.0,0.00020821,3]
[334616741,1723349444578,-500.0,0.00020821,3]
[334616742,1723349444588,-500.0,0.00020821,3]
[334616743,1723349444598,-692.097073,0.00020821,2]
[334616744,1723349444608,-692.097073,0.00020821,2]
[334616745,1723349444618,-500.0,0.00020821,3]
[334616746,1723349444628,-692.097073,0.00020821,2]
[334616747,1723349444639,-692.097073,0.00020821,2]
[334616748,1723349444648,-500.0,0.00020821,3]
[334616749,1723349444657,-606.78589506,0.00020821,3]
[334616750,1723349444666,-628.92,0.00020821,3]
[334616751,1723349444675,-618.14,0.00020821,3]
[334616752,1723349444684,-357.7573175,0.00020821,3]
[334616753,1723349444694,-861.91,0.00020821,3]
[334616754,1723349444703,-500.0,0.00020821,3]
[334616755,1723349444712,-500.0,0.00020821,3]
[334616756,1723349444721,-583.62858373,0.00020821,3]
[334616757,1723349444731,-605.26,0.00020821,2]
[334616758,1723349444740,-640.19,0.00020821,3]
[334616759,1723349444749,-500.0,0.00020821,3]
[334616760,1723349444759,-500.0,0.00020821,3]
[334616761,1723349444768,-151.0,0.00020821,2]
[334616762,1723349444777,-691.91,0.00020821,3]
[334616763,1723349444786,-500.0,0.00020821,3]
[334616764,1723349444795,-618.61,0.00020821,3]
[334616765,1723349444805,-500.0,0.00020821,3]
[334616766,1723349444815,-250.00872794,0.00020821,3]
[334616767,1723349444824,-799.48,0.00020821,3]
[334616768,1723349444834,-500.0,0.00020821,3]
[334616769,1723349444843,-799.48,0.00020821,3]
[334616770,1723349444853,-500.0,0.00020821,3]
[334616771,1723349444863,-743.19,0.00020821,3]
[334616772,1723349444873,-799.48,0.00020821,3]
[334616773,1723349444884,-799.48,0.00020821,3]
[334616774,1723349444895,-799.48,0.00020821,3]
[334616775,1723349444905,-799.48,0.00020821,3]
[334616776,1723349444914,-799.48,0.00020821,3]
[334616777,1723349444923,-799.48,0.00020821,3]
[334616778,1723349444933,-799.48,0.00020821,3]
[334616779,1723349444942,-799.48,0.00020821,3]
[334616780,1723349444952,-799.48,0.00020821,3]
[334616781,1723349444961,-799.48,0.00020821,3]
[334616782,1723349444971,-506.05797487,0.00020821,3]
[334616783,1723349444981,-799.48,0.00020821,3]
[334616784,1723349444991,-799.48,0.00020821,3]
[334616785,1723349445000,-799.48,0.00020821,3]
[334616786,1723349445010,-1364.63,0.00020821,3]
[334616787,1723349445020,-799.48,0.00020821,3]
[334616788,1723349445031,-799.48,0.00020821,3]
[334616789,1723349445040,-799.48,0.00020821,3]
[334616790,1723349445049,-799.48,0.00020821,3]
[334616791,1723349445059,-521.74586568,0.00020821,3]
[334616792,1723349445068,-799.48,0.00020821,3]
[334616793,1723349445077,-500.0,0.00020821,3]
[334616794,1723349445086,-799.48,0.00020821,3]
[334616795,1723349445095,-799.48,0.00020821,3]
[334616796,1723349445104,-799.48,0.00020821,3]
[334616797,1723349445114,-799.48350698,0.00020821,3]
[334616798,1723349445124,-820.83,0.00020821,3]
[334616799,1723349445135,-500.0,0.00020821,3]
[334616800,1723349445145,-500.0,0.00020821,3]
[334616801,1723349445155,-517.58,0.00020821,3]
[334616802,1723349445165,-638.14,0.00020821,3]
[334616803,1723349445175,-789.55,0.00020821,3]
[334616804,1723349445184,-603.76,0.00020821,3]
[334616805,1723349445194,-1456.8,0.00020821,3]
[334616806,1723349445204,-187.17447926,0.00020821,3]
[334616807,1723349445214,-500.0,0.00020821,3]
[334616808,1723349445224,-500.0,0.00020821,3]
[334616810,1723349445233,-500.0,0.00020821,3]
[334616811,1723349445242,-519.96944038,0.00020821,3]
[334616812,1723349445251,-500.0,0.00020821,3]
[334616813,1723349445260,-730.56,0.00020821,3]
[334616815,1723349445270,-500.0,0.00020821,3]
[334616816,1723349445279,-500.0,0.00020821,3]
[334616817,1723349445288,-500.0,0.00020821,3]
[334616818,1723349445297,-500.0,0.00020821,3]
[334616819,1723349445306,-500.0,0.00020821,3]
[334616820,1723349445315,-500.0,0.00020821,3]
[334616821,1723349445325,-500.0,0.00020821,3]
[334616823,1723349445334,-500.0,0.00020821,3]
[334616824,1723349445343,-500.0,0.00020821,3]
[334616825,1723349445352,-582.14,0.00020821,3]
[334616826,1723349445363,-500.0,0.00020821,3]
[334616827,1723349445371,-500.0,0.00020821,3]
[334616828,1723349445379,-1177.54,0.00020821,3]
[334616829,1723349445390,-500.0,0.00020821,3]
[334616830,1723349445402,-1248.66,0.00020821,3]
[334616831,1723349445411,-500.0,0.00020821,3]
[334616832,1723349445421,-500.0,0.00020821,3]
[334616833,1723349445430,-527.23,0.00020821,3]
[334616834,1723349445440,-610.24,0.00020821,3]
[334616836,1723349445450,-508.73142886,0.00020821,3]
[334616838,1723349445460,-500.0,0.00020821,3]
[334616840,1723349445470,-480.369157,0.00020821,3]
[334616842,1723349445479,-500.0,0.00020821,3]
[334616843,1723349445491,-718.89,0.00020821,3]
[334616844,1723349445501,-506.08118856,0.00020821,3]
[334616845,1723349445512,-507.01407153,0.00020821,3]
[334616846,1723349445521,-541.4,0.00020821,3]
[334616847,1723349445531,-500.0,0.00020821,3]
[334616848,1723349445542,-1469.8,0.00020821,3]
[334616849,1723349445552,-184.16133404,0.00020821,3]
[334616850,1723349445561,-777.28,0.00020821,3]
[334616851,1723349445571,-500.0,0.00020821,3]
[334616852,1723349445581,-500.0,0.00020821,3]
[334616853,1723349445592,-922.83,0.00020821,3]
[334616854,1723349445602,-500.0,0.00020821,3]
[334616855,1723349445611,-340.29508575,0.00020821,3]
[334616856,1723349445620,-507.91011933,0.00020821,3]
[334616857,1723349445630,-500.0,0.00020821,3]
[334616858,1723349445639,-500.0,0.00020821,3]
[334616860,1723349445649,-1187.55,0.00020821,3]
[334616862,1723349445658,-509.8722924,0.00020821,3]
[334616864,1723349445668,-1368.57,0.00020821,3]
[334616866,1723349445677,-500.0,0.00020821,3]
[334616868,1723349445687,-500.0,0.00020821,3]
[334616869,1723349445696,-500.0,0.00020821,3]
[334616870,1723349445706,-1421.28,0.00020821,3]
[334616871,1723349445716,-500.0,0.00020821,3]
[334616872,1723349445726,-510.56967766,0.00020821,3]
[334616873,1723349445736,-500.0,0.00020821,3]
[334616874,1723349445746,-500.0,0.00020821,3]
[334616875,1723349445755,-500.0,0.00020821,3]
[334616876,1723349445764,-500.0,0.00020821,3]
[334616877,1723349445774,-503.7474124,0.00020821,3]
[334616878,1723349445784,-500.0,0.00020821,3]
[334616879,1723349445793,-482.76035406,0.00020821,3]
[334616880,1723349445803,-500.0,0.00020821,3]
[334616881,1723349445813,-500.0,0.00020821,3]
[334616882,1723349445822,-500.0,0.00020821,3]
[334616883,1723349445831,-500.0,0.00020821,3]
[334616884,1723349445841,-500.0,0.00020821,3]
[334616885,1723349445850,-340.663153,0.00020821,2]
[334616886,1723349445860,-340.663153,0.00020821,2]
[334616887,1723349445869,-340.663153,0.00020821,2]
[334616888,1723349445879,-340.663153,0.00020821,2]
[334616889,1723349445890,-340.663153,0.00020821,2]
[334616890,1723349445899,-500.0,0.00020821,3]
[334616891,1723349445909,-340.663153,0.00020821,2]
[334616892,1723349445922,-500.0,0.00020821,3]
[334616893,1723349445932,-500.0,0.00020821,3]
[334616894,1723349445941,-500.0,0.00020821,3]
[334616895,1723349445953,-500.0,0.00020821,3]
[334616896,1723349445964,-500.0,0.00020821,3]
[334616897,1723349445974,-500.0,0.00020821,3]
[334616898,1723349445984,-500.0,0.00020821,3]
[334616900,1723349445995,-500.0,0.00020821,3]
[334616901,1723349446005,-162.908206,0.00020821,2]
[334616902,1723349446015,-162.908206,0.00020821,2]
[334616903,1723349446025,-162.908206,0.00020821,2]
[334616904,1723349446034,-500.0,0.00020821,3]
[334616905,1723349446043,-500.0,0.00020821,3]
[334616906,1723349446054,-500.0,0.00020821,3]
[334616907,1723349446065,-500.0,0.00020821,3]
[334616908,1723349446074,-162.908206,0.00020821,2]
[334616909,1723349446083,-162.908206,0.00020821,2]
[334616910,1723349446093,-162.908206,0.00020821,2]
[334616911,1723349446103,-500.0,0.00020821,3]
[334616912,1723349446112,-500.0,0.00020821,3]
[334616913,1723349446123,-500.0,0.00020821,3]
[334616914,1723349446134,-500.0,0.00020821,3]
[334616915,1723349446145,-1795.97,0.00020821,3]
[334616916,1723349446156,-500.0,0.00020821,3]
[334616917,1723349446168,-500.0,0.00020821,3]
[334616918,1723349446178,-500.0,0.00020821,3]
[334616919,1723349446187,-2300.82,0.00020821,3]
[334616920,1723349446196,-1261.28,0.00020821,3]
[334616921,1723349446204,-724.56,0.00020821,3]
[334616922,1723349446216,-759.73,0.00020821,3]
[334616923,1723349446228,-275.78751745,0.00020821,3]
[334616924,1723349446238,-500.0,0.00020821,3]
[334616925,1723349446248,-500.0,0.00020821,3]
[334616926,1723349446259,-151.0,0.00020821,2]
[334616927,1723349446269,-151.0,0.00020821,2]
[334616928,1723349446279,-151.0,0.00020821,2]
[334616929,1723349446289,-500.0,0.00020821,3]
[334616930,1723349446299,-640.00895357,0.00020821,3]
[334616931,1723349446308,-500.0,0.00020821,3]
[334616932,1723349446318,-500.0,0.00020821,3]
[334616933,1723349446327,-500.0,0.00020821,3]
[334616934,1723349446336,-500.0,0.00020821,3]
[334616935,1723349446345,-674.3,0.00020821,3]
[334616936,1723349446354,-905.38,0.00020821,3]
[334616937,1723349446364,-700.0,0.00020821,2]
[334616938,1723349446374,-700.0,0.00020821,2]
[334616939,1723349446384,-700.0,0.00020821,2]
[334616940,1723349446396,-1922.81,0.00020821,3]
[334616941,1723349446405,-500.0,0.00020821,3]
[334616942,1723349446415,-700.0,0.00020821,2]
[334616943,1723349446424,-500.0,0.00020821,3]
[334616944,1723349446434,-700.0,0.00020821,2]
[334616945,1723349446443,-700.0,0.00020821,2]
[334616946,1723349446453,-500.0,0.00020821,3]
[334616947,1723349446462,-1171.570492,0.00020821,2]
[334616948,1723349446471,-1171.570492,0.00020821,2]
[334616949,1723349446481,-1171.570492,0.00020821,2]
[334616950,1723349446491,-2250.85,0.00020821,3]
[334616951,1723349446500,-1171.570492,0.00020821,2]
[334616952,1723349446509,-723.49,0.00020821,3]
[334616953,1723349446519,-1171.570492,0.00020821,2]
[334616954,1723349446528,-1171.570492,0.00020821,2]
[334616955,1723349446537,-3262.69,0.00020821,3]
[334616956,1723349446547,-500.0,0.00020821,3]
[334616957,1723349446558,-500.0,0.00020821,3]
[334616958,1723349446568,-536.04,0.00020821,3]
[334616959,1723349446578,-1896.87,0.00020821,3]
[334616960,1723349446588,-514.2943136,0.00020821,3]
[334616961,1723349446598,-2301.47,0.00020821,3]
[334616962,1723349446607,-535.91967811,0.00020821,3]
[334616963,1723349446619,-506.78449327,0.00020821,3]
[334616964,1723349446629,-1820.71,0.00020821,3]
[334616965,1723349446640,-500.0,0.00020821,3]
[334616966,1723349446650,-500.0,0.00020821,3]
[334616967,1723349446659,-500.0,0.00020821,3]
[334616968,1723349446670,-1210.95,0.00020821,3]
[334616969,1723349446681,-509.42676098,0.00020821,3]
[334616970,1723349446690,-522.26,0.00020821,3]
[334616971,1723349446701,-288.807923,0.00020821,2]
[334616972,1723349446712,-507.94492902,0.00020821,3]
[334616973,1723349446722,-288.807923,0.00020821,2]
[334616974,1723349446735,-288.807923,0.00020821,2]
[334616975,1723349446745,-504.89497685,0.00020821,3]
[334616976,1723349446755,-288.807923,0.00020821,2]
[334616977,1723349446766,-288.807923,0.00020821,2]
[334616978,1723349446775,-288.807923,0.00020821,2]
[334616979,1723349446787,-2077.54,0.00020821,3]
[334616980,1723349446798,-633.45871335,0.00020821,3]
[334616981,1723349446808,-12410.1,0.00020821,3]
[334616982,1723349446819,-202.876898,0.00020821,2]
[334616983,1723349446829,-504.67676047,0.00020821,3]
[334616984,1723349446839,-1232.92,0.00020821,3]
[334616985,1723349446851,-500.0,0.00020821,3]
[334616986,1723349446862,-502.00078337,0.00020821,3]
[334616987,1723349446872,-500.0,0.00020821,3]
[334616988,1723349446881,-518.17249143,0.00020821,3]
[334616989,1723349446893,-508.39461031,0.00020821,3]
[334616990,1723349446903,-151.0,0.00020821,2]
[334616991,1723349446914,-500.0,0.00020821,3]
[334616992,1723349446924,-151.0,0.00020821,2]
[334616993,1723349446935,-500.0,0.00020821,3]
[334616994,1723349446946,-504.5996778,0.00020821,3]
[334616995,1723349446956,-654.7,0.00020821,3]
[334616996,1723349446967,-3383.0,0.00020821,3]
[334616997,1723349446978,-500.0,0.00020821,3]
[334616998,1723349446989,-508.88302386,0.00020821,3]
[334616999,1723349446999,-531.75765102,0.00020821,3]
[334617000,1723349447011,-3874.35,0.00020821,3]
[334617001,1723349447021,-500.0,0.00020821,3]
[334617002,1723349447031,-500.0,0.00020821,3]
[334617003,1723349447039,-500.0,0.00020821,3]
[334617004,1723349447049,-810.73,0.00020821,3]
[334617005,1723349447059,-2348.17,0.00020821,3]
[334617006,1723349447069,-500.0,0.00020821,3]
[334617007,1723349447078,-562.36,0.00020821,3]
[334617008,1723349447088,-502.62172774,0.00020821,3]
[334617009,1723349447098,-2345.42,0.00020821,3]
[334617010,1723349447107,-500.0,0.00020821,3]
[334617011,1723349447118,-500.0,0.00020821,3]
[334617012,1723349447133,-500.0,0.00020821,3]
[334617013,1723349447152,-500.0,0.00020821,3]
[334617014,1723349447163,-500.0,0.00020821,3]
[334617015,1723349447174,-500.0,0.00020821,3]
[334617016,1723349447185,-500.0,0.00020821,3]
[334617017,1723349447195,-500.0,0.00020821,3]
[334617018,1723349447207,-580.75292204,0.00020821,3]
[334617019,1723349447222,-500.0,0.00020821,3]
[334617020,1723349447233,-500.0,0.00020821,3]
[334617021,1723349447243,-500.0,0.00020821,3]
[334617022,1723349447252,-248.23873552,0.00020821,3]
[334617023,1723349447261,-558.68,0.00020821,3]
[334617024,1723349447273,-500.0,0.00020821,3]
[334617025,1723349447284,-682.38,0.00020821,3]
[334617026,1723349447296,-517.93118177,0.00020821,3]
[334617027,1723349447306,-264.279785,0.00020821,2]
[334617028,1723349447317,-2133.92,0.00020821,3]
[334617029,1723349447328,-264.279785,0.00020821,2]
[334617030,1723349447340,-264.279785,0.00020821,2]
[334617031,1723349447352,-264.279785,0.00020821,2]
[334617032,1723349447364,-282.06733328,0.00020821,3]
[334617033,1723349447374,-264.279785,0.00020821,2]
[334617034,1723349447384,-264.279785,0.00020821,2]
[334617035,1723349447404,-187.821556,0.00020821,2]
[334617036,1723349447416,-187.821556,0.00020821,2]
[334617037,1723349447425,-187.821556,0.00020821,2]
[334617038,1723349447435,-574.79,0.00020821,3]
[334617039,1723349447444,-500.0,0.00020821,3]
[334617040,1723349447453,-187.821556,0.00020821,2]
[334617041,1723349447463,-187.821556,0.00020821,2]
[334617042,1723349447472,-187.821556,0.00020821,2]
[334617043,1723349447482,-500.0,0.00020821,3]
[334617044,1723349447492,-588.08,0.00020821,3]
[334617045,1723349447501,-962.04,0.00020821,3]
[334617046,1723349447510,-1161.84,0.00020821,3]
[334617047,1723349447520,-500.0,0.00020821,3]
[334617048,1723349447531,-3010.59,0.00020821,3]
[334617049,1723349447541,-500.0,0.00020821,3]
[334617050,1723349447553,-1494.27,0.00020821,3]
[334617051,1723349447690,-500.0,0.00020821,3]
[334617052,1723349447699,-445.403825,0.00020821,2]
[334617053,1723349447710,-500.0,0.00020821,3]
[334617054,1723349447719,-445.403825,0.00020821,2]
[334617055,1723349447731,-445.403825,0.00020821,2]
[334617056,1723349447740,-948.76,0.00020821,3]
[334617057,1723349447750,-445.403825,0.00020821,2]
[334617058,1723349447761,-500.0,0.00020821,3]
[334617059,1723349447771,-500.0,0.00020821,3]
[334617060,1723349447780,-1402.88,0.00020821,3]
[334617061,1723349447790,-445.403825,0.00020821,2]
[334617062,1723349447800,-445.403825,0.00020821,2]
[334617063,1723349447810,-940.1,0.00020821,3]
[334617064,1723349447819,-500.0,0.00020821,3]
[334617065,1723349447829,-1604.64,0.00020821,3]
[334617066,1723349447839,-151.0,0.00020821,2]
[334617067,1723349447848,-1606.4,0.00020821,3]
[334617068,1723349447857,-151.0,0.00020821,2]
[334617069,1723349447866,-151.0,0.00020821,2]
[334617070,1723349447875,-13994.82,0.00020821,3]
[334617071,1723349447884,-634.66813032,0.00020821,3]
[334617072,1723349447894,-500.0,0.00020821,3]
[334617073,1723349447903,-151.673082,0.00020821,2]
[334617074,1723349447913,-508.69991338,0.00020821,3]
[334617075,1723349447922,-3482.42,0.00020821,3]
[334617076,1723349447931,-500.0,0.00020821,3]
[334617077,1723349447940,-500.0,0.00020821,3]
[334617078,1723349447949,-872.99,0.00020821,3]
[334617079,1723349447958,-500.0,0.00020821,3]
[334617080,1723349447967,-1128.07,0.00020821,3]
[334617081,1723349447977,-500.0,0.00020821,3]
[334617082,1723349447987,-500.0,0.00020821,3]
[334617083,1723349447997,-612.721247,0.00020821,2]
[334617084,1723349448006,-612.721247,0.00020821,2]
[334617085,1723349448016,-612.721247,0.00020821,2]
[334617086,1723349448026,-500.0,0.00020821,3]
[334617087,1723349448036,-612.721247,0.00020821,2]
[334617088,1723349448047,-612.721247,0.00020821,2]
[334617089,1723349448058,-612.721247,0.00020821,2]
[334617090,1723349448068,-2436.58,0.00020821,3]
[334617091,1723349448078,-545.08891985,0.00020821,3]
[334617092,1723349448088,-2458.02,0.00020821,3]
[334617093,1723349448097,-500.0,0.00020821,3]
[334617094,1723349448107,-500.0,0.00020821,3]
[334617095,1723349448116,-238.279696,0.00020821,2]
[334617096,1723349448127,-500.0,0.00020821,3]
[334617097,1723349448138,-8375.0,0.00020821,3]